bitfinex-derivatives/quotes_ETHF0:USTF0_20251213
["timestamp","ask_amount","ask_price","bid_price","bid_amount"]
[1765646212189,1.9173,3103.0,3102.9,0.7586394]
[1765646212384,1.1986,3103.0,3102.9,3.94e-05]
[1765646214883,0.464,3103.0,3102.9,3.94e-05]
[1765646218188,1.9261,3103.0,3102.9,1.4782394]
[1765646218388,0.464,3103.0,3102.9,1.4782394]
[1765646218594,4.6699,3103.3,3103.2,1.4782]
[1765646218992,4.6699,3103.3,3103.2,0.7237]
[1765646220494,4.6699,3103.3,3103.2,1.4782]
[1765646220686,3.9169,3103.3,3103.2,1.4782]
[1765646221491,3.2078,3103.3,3103.2,1.4782]
[1765646223589,15.6681,3103.8,3103.7,0.7237]
[1765646223794,16.4211,3103.8,3103.7,0.7237]
[1765646224190,16.4211,3103.8,3103.0,3.6546]
[1765646226690,1.4621,3103.8,3103.7,0.7237]
[1765646228097,1.4621,3103.8,3103.0,3.6546]
[1765646228691,1.4621,3103.1,3103.0,4.686]
[1765646229701,1.4621,3103.1,3103.0,3.2078]
[1765646229901,0.4276,3103.0,3102.9,3.94e-05]
[1765646232002,1.1806,3103.0,3102.9,0.7237394]
[1765646232197,1.8897,3103.0,3102.9,0.7237394]
[1765646232593,1.8897,3103.0,3102.9,1.4782394]
[1765646233197,0.7091,3103.0,3102.9,1.4782394]
[1765646233793,1.8897,3103.5,3103.4,1.4782]
[1765646233999,4.6699,3103.7,3103.6,1.4782]
[1765646234704,1.4621,3103.7,3103.6,1.4782]
[1765646235105,1.4621,3103.7,3103.0,3.6546]
[1765646236105,1.4621,3103.7,3103.6,1.4782]
[1765646237907,1.4621,3103.7,3103.6,0.7237]
[1765646238513,4.6699,3103.7,3103.0,3.6546]
[1765646238708,0.7091,3103.1,3103.0,3.9315]
[1765646238912,1.4621,3103.1,3103.0,4.686]
[1765646239210,0.4276,3103.5,3103.0,4.686]
[1765646239516,1.8897,3103.5,3103.4,0.7237]
[1765646241812,1.8897,3103.5,3103.0,3.2078]
[1765646242010,0.7445,3103.1,3103.0,4.6248]
[1765646242714,0.4276,3103.5,3103.0,4.6248]
[1765646242904,1.9066,3103.5,3103.4,0.6977]
[1765646243913,1.1721,3103.5,3103.4,1.417]
[1765646244110,1.9066,3103.5,3103.4,1.417]
[1765646250317,0.7467,3103.1,3103.0,5.0936]
[1765646250715,0.7467,3103.1,3103.0,4.6628]
[1765646250919,1.4496,3103.1,3103.0,3.2078]
[1765646251620,1.4496,3103.1,3103.0,3.9189]
[1765646252116,1.4496,3103.1,3103.0,0.7111]
[1765646252516,1.8676,3103.0,3102.9,0.7111394]
[1765646256120,0.418,3103.0,3102.9,3.94e-05]
[1765646257414,13.44,3103.0,3102.9,3.94e-05]
[1765646261022,9.44,3103.0,3102.9,3.94e-05]
[1765646261328,9.858,3103.0,3102.9,3.94e-05]
[1765646261626,9.858,3103.0,3102.2,1.455]
[1765646261822,1.4496,3102.3,3102.2,1.455]
[1765646262026,9.858,3103.0,3102.2,1.455]
[1765646262718,0.7467,3102.4,3102.3,1.4598394]
[1765646267427,1.4496,3102.4,3102.3,1.4598394]
[1765646270527,1.4496,3102.4,3102.3,0.7159394]
[1765646270732,1.8676,3102.0,3101.3,3.2078]
[1765646270931,8.8736,3102.0,3101.3,3.2078]
[1765646271231,8.8736,3102.0,3101.3,3.47186736]
[1765646271736,8.8736,3102.0,3101.6,0.0048394]
[1765646274237,12.0814,3102.0,3101.6,0.0048394]
[1765646274436,12.0814,3102.0,3101.3,3.2078]
[1765646274437,1.4496,3101.4,3101.3,4.6628]
[1765646274736,0.7467,3101.4,3101.3,4.6628]
[1765646275129,10.6318,3102.0,3101.3,4.6628]
[1765646275326,10.63429534,3102.0,3101.3,4.67100342]
[1765646275527,10.63429534,3102.0,3101.9,1.4509]
[1765646275528,1.85739534,3102.0,3101.9,1.4509]
[1765646275731,7.12339534,3102.0,3101.9,0.7009]
[1765646280635,1.43939534,3102.0,3101.9,1.4509]
[1765646280945,0.00249534,3102.0,3101.9,1.4509]
[1765646282136,0.70539534,3102.0,3101.9,1.4509]
[1765646282337,0.00249534,3102.0,3101.9,1.4509]
[1765646284038,0.70539534,3102.0,3101.9,1.4509]
[1765646284343,1.88859534,3102.0,3101.9,1.4509]
[1765646286649,1.43939534,3102.0,3101.9,1.4509]
[1765646286948,0.00249534,3102.0,3101.9,1.4509]
[1765646287142,0.70539534,3102.0,3101.9,1.4509]
[1765646287545,1.43939534,3102.0,3101.9,1.4509]
[1765646288949,1.88859534,3102.0,3101.9,1.4509]
[1765646290245,0.00249534,3102.0,3101.9,1.4509]
[1765646298650,1.43939534,3102.0,3101.9,1.4509]
[1765646299054,0.70539534,3102.0,3101.9,1.4509]
[1765646301263,1.4369,3101.9,3101.8,3.2078]
[1765646301450,1.4369,3101.5,3101.4,4.6587]
[1765646302958,0.7029,3101.5,3101.4,4.6587]
[1765646306358,0.7394,3101.5,3101.4,4.6587]
[1765646306558,0.45169534,3102.0,3101.4,4.6587]
[1765646306758,1.4409,3101.5,3101.4,4.6587]
[1765646308471,1.8927,3101.5,3101.4,4.6802]
[1765646309968,1.8927,3101.5,3101.4,3.9093]
[1765646310676,1.8927,3101.5,3101.4,4.6802]
[1765646310971,1.8927,3101.5,3101.4,3.9093]
[1765646313564,1.8927,3101.5,3101.4,3.2078]
[1765646314768,1.4409,3101.4,3101.3,0.00820342]
[1765646315167,1.4409,3101.4,3101.3,0.70970342]
[1765646317380,1.4409,3101.4,3101.3,1.48060342]
[1765646317780,1.4409,3101.4,3101.3,0.70970342]
[1765646318277,1.4409,3101.4,3101.3,0.00820342]
[1765646321680,1.4409,3101.2,3101.1,3.207643]
[1765646321878,0.1612,3101.4,3100.7,3.2078]
[1765646322181,3.2078,3101.3,3100.7,3.17860237]
[1765646322387,3.38521,3101.2,3100.7,3.17860237]
[1765646322783,3.38521,3101.2,3100.7,3.18242437]
[1765646323282,0.16121,3101.2,3100.7,3.18242437]
[1765646323580,3.2078,3100.8,3100.7,0.003822]
[1765646327286,3.2078,3100.8,3100.7,1.476222]
[1765646327483,6.0638,3100.8,3100.7,1.476222]
[1765646327788,3.2078,3100.8,3100.7,1.476222]
[1765646328784,0.0048394,3101.3,3101.0,0.4246]
[1765646328785,3.2078,3101.2,3101.0,0.4246]
[1765646328992,6.4468,3101.2,3101.1,1.4724]
[1765646330392,3.2078,3101.2,3101.1,1.4724]
[1765646331984,12.3108394,3101.3,3101.2,1.4724]
[1765646335090,12.3108394,3101.3,3101.2,0.7015]
[1765646335295,12.3108394,3101.3,3101.0,1.8454]
[1765646338289,12.3108394,3101.3,3101.0,1.1426]
[1765646338494,12.3108394,3101.3,3101.0,0.4246]
[1765646338981,12.3108394,3101.3,3101.0,1.1426]
[1765646339391,12.3108394,3101.3,3101.0,1.8454]
[1765646339594,12.3108394,3101.3,3101.0,1.1426]
[1765646340096,12.3108394,3101.3,3101.0,1.8454]
[1765646342594,12.3108394,3101.3,3101.0,1.1426]
[1765646342787,12.3108394,3101.3,3101.0,1.8454]
[1765646343895,12.3108394,3101.3,3101.2,1.4208]
[1765646346094,0.0048394,3101.3,3101.2,1.4208]
[1765646346302,14.9698394,3101.3,3101.2,1.4208]
[1765646347496,0.0048394,3101.3,3101.2,1.4208]
[1765646353606,0.0048394,3101.3,3101.0,0.4246]
[1765646353812,0.0048394,3101.3,3100.7,0.003822]
[1765646353813,3.2078,3101.1,3100.7,0.003822]
[1765646354012,14.964,3101.0,3100.7,0.003822]
[1765646354611,14.964,3101.0,3100.7,0.721822]
[1765646355106,14.964,3101.0,3100.7,1.424622]
[1765646355908,3.2078,3101.1,3101.0,1.1531]
[1765646356111,3.2078,3101.1,3101.0,1.8559]
[1765646356312,7.9438,3101.1,3101.0,1.8559]
[1765646356702,7.9438,3101.1,3101.0,0.4351]
[1765646357109,7.9438,3101.1,3101.0,1.8559]
[1765646358109,3.2078,3101.1,3101.0,1.8559]
[1765646366012,3.2078,3101.1,3101.0,0.4351]
[1765646366521,3.2078,3101.1,3101.0,1.1556]
[1765646367116,3.2078,3101.1,3101.0,1.8947]
[1765646384825,3.2078,3101.2,3101.1,1.4596]
[1765646391632,3.2078,3101.2,3101.1,0.7205]
[1765646392034,3.2078,3101.2,3101.1,1.4596]
[1765646392426,3.2078,3101.2,3101.0,0.4351]
[1765646392635,0.98130555,3101.1,3100.7,0.003822]
[1765646392830,3.2078,3100.8,3100.7,0.003822]
[1765646393034,3.2078,3100.8,3100.7,2.2e-05]
[1765646394236,9.2078,3100.8,3100.0,3.6276]
[1765646394437,3.2078,3100.4,3100.0,4.3481]
[1765646394637,10.555,3100.3,3100.0,4.3481]
[1765646395138,10.555,3100.3,3100.0,3.63023266]
[1765646395740,10.555,3100.3,3100.0,5.10733266]
[1765646396334,10.555,3100.3,3100.0,4.36853266]
[1765646396528,10.555,3100.3,3100.0,3.63023266]
[1765646400342,10.555,3100.3,3100.0,0.42243266]
[1765646401046,10.555,3100.3,3100.0,0.00263266]
[1765646407643,3.2078,3100.4,3100.0,1.18973266]
[1765646407841,3.2078,3100.4,3100.0,0.45143266]
[1765646407842,9.088,3100.3,3100.0,0.45143266]
[1765646412653,3.2078,3100.1,3100.0,0.45143266]
[1765646423159,3.2078,3100.1,3100.0,1.18973266]
[1765646423653,3.2078,3100.1,3100.0,0.45143266]
[1765646426147,3.2078,3100.1,3100.0,0.00263266]
[1765646427058,3.2078,3100.1,3100.0,0.43713266]
[1765646427758,3.2078,3100.1,3100.0,1.93133266]
[1765646427960,0.4382,3101.0,3100.5,1.1982]
[1765646428259,17.4985,3101.0,3100.9,1.4942]
[1765646428462,0.0048394,3101.3,3100.5,0.4345]
[1765646428662,6.2872394,3101.3,3101.2,1.4942]
[1765646429258,7.0265394,3101.3,3101.2,1.4942]
[1765646433262,0.7474,3100.9,3100.8,3.2078]
[1765646433467,0.7474,3100.9,3100.5,0.4345]
[1765646433468,1.4867,3100.6,3100.5,1.9287]
[1765646435173,0.7474,3100.6,3100.5,1.9287]
[1765646438376,0.3523,3101.0,3100.5,1.9287]
[1765646438568,1.839,3101.0,3100.9,1.4942]
[1765646438875,3.9552,3101.1,3101.0,1.9287]
[1765646439380,4.6945,3101.1,3101.0,1.9287]
[1765646439676,4.6945,3101.1,3101.0,0.7305]
[1765646440673,4.6945,3101.1,3101.0,1.4942]
[1765646440976,4.6945,3101.1,3101.0,0.7305]
[1765646441278,4.6945,3101.1,3101.0,1.4942]
[1765646442181,4.6945,3101.1,3101.0,0.7305]
[1765646442778,1.4867,3101.1,3101.0,0.7305]
[1765646445574,1.4867,3101.1,3101.0,1.4942]
[1765646446474,1.4867,3100.8,3100.7,4.702]
[1765646446675,0.7474,3100.8,3100.7,4.702]
[1765646446973,16.0885394,3101.3,3101.2,0.7305]
[1765646447173,16.0885394,3101.3,3101.2,1.4942]
[1765646447582,16.0885394,3101.3,3101.2,0.7305]
[1765646448887,16.0885394,3101.3,3100.7,3.2078]
[1765646449182,14.6018394,3101.3,3100.7,4.702]
[1765646450481,16.0885394,3101.3,3101.2,0.7305]
[1765646450676,16.0885394,3101.3,3100.7,3.2078]
[1765646451587,0.7474,3100.8,3100.7,4.702]
[1765646451784,14.6018394,3101.3,3100.7,4.702]
[1765646456994,0.706,3100.8,3100.7,4.702]
[1765646458693,16.0486394,3101.3,3101.2,1.5431]
[1765646459193,16.0486394,3101.3,3101.2,0.7713]
[1765646459994,1.4516394,3101.3,3101.2,1.5431]
[1765646460201,16.4156394,3101.3,3101.2,1.5431]
[1765646461392,0.0048394,3101.3,3101.2,1.5431]
[1765646461796,0.7108394,3101.3,3101.2,1.5431]
[1765646462490,1.4468,3101.2,3101.1,3.2078]
[1765646462696,1.4468,3101.2,3101.1,3.9791]
[1765646463097,1.4468,3101.2,3101.1,4.7509]
[1765646465092,0.706,3101.2,3101.1,4.7509]
[1765646465493,0.7108394,3101.3,3101.2,1.5431]
[1765646466503,1.4516394,3101.3,3101.2,1.5431]
[1765646469296,1.4516394,3101.3,3101.2,0.7713]
[1765646470504,1.4516394,3101.3,3101.2,1.5431]
[1765646480515,1.4516394,3101.3,3101.2,0.7713]
[1765646482821,1.4516394,3101.3,3101.2,1.5431]
[1765646496833,1.4516394,3101.3,3100.7,3.2078]
[1765646497026,1.4801,3100.8,3100.7,4.6593]
[1765646498126,10.6331,3100.8,3100.7,4.6593]
[1765646500933,10.6331,3100.8,3100.7,1.4515]
[1765646510547,9.8696,3100.8,3100.7,1.4515]
[1765646511145,10.6331,3100.8,3100.7,1.4515]
[1765646512645,9.8696,3100.8,3100.7,1.4515]
[1765646513436,0.7214394,3101.3,3101.2,1.4515]
[1765646513639,0.0048394,3101.3,3101.2,1.4515]
[1765646518647,0.0048394,3101.3,3101.2,4.6593]
[1765646521444,0.7662394,3101.3,3101.2,4.6593]
[1765646521647,1.5208394,3101.3,3101.2,3.9431]
[1765646521847,1.5208394,3101.3,3101.2,4.6656]
[1765646522244,0.7662394,3101.3,3101.2,4.6656]
[1765646525554,1.5208394,3101.3,3101.2,4.6656]
[1765646526053,0.7662394,3101.3,3101.2,4.6656]
[1765646527855,1.5208394,3101.3,3101.2,3.9431]
[1765646528359,1.516,3101.1,3101.0,1.8831]
[1765646531143,1.516,3101.1,3101.0,1.4286]
[1765646532154,0.7614,3101.1,3101.0,1.8794]
[1765646532655,0.7662394,3101.3,3101.2,1.4286]
[1765646532851,1.5208394,3101.3,3101.2,1.4286]
[1765646535861,1.516,3100.9,3100.8,4.6364]
[1765646536759,1.516,3100.9,3100.8,3.9139]
[1765646536950,1.516,3100.9,3100.8,4.6364]
[1765646538358,0.7614,3100.9,3100.8,4.6364]
[1765646539360,1.516,3100.9,3100.8,4.6364]
[1765646540252,1.516,3100.9,3100.8,3.2078]
[1765646541862,0.4288,3101.0,3100.5,0.4345]
[1765646541863,1.516,3100.6,3100.5,1.8631]
[1765646542363,1.516,3100.6,3100.5,0.7061]
[1765646542854,1.516,3100.6,3100.5,1.4286]
[1765646545259,1.516,3100.6,3100.5,1.8549]
[1765646545463,1.5315,3100.6,3100.5,1.8549]
[1765646547071,1.4794,3100.4,3100.3,4.7336]
[1765646547372,1.4794,3100.4,3100.3,3.2078]
[1765646547575,1.4794,3100.4,3100.3,3.9745]
[1765646547974,1.4794,3100.4,3100.3,4.7336]
[1765646548273,1.4794,3100.4,3100.3,3.2078]
[1765646549263,0.7415,3100.4,3100.3,4.7336]
[1765646549465,3.6614,3100.7,3100.6,1.5258]
[1765646549972,3.6614,3100.7,3100.6,0.7667]
[1765646550376,1.4794,3100.7,3100.6,1.5258]
[1765646550565,14.3165,3100.7,3100.6,1.5258]
[1765646550765,15.0544,3100.7,3100.6,1.5258]
[1765646553280,14.3165,3100.7,3100.6,1.5258]
[1765646553479,5.116,3101.0,3100.9,0.7667]
[1765646553774,4.6872,3101.0,3100.9,1.5258]
[1765646556573,4.6872,3101.0,3100.9,0.7667]
[1765646556768,5.1085,3101.0,3100.5,0.4301]
[1765646557174,5.1085,3101.0,3100.9,0.7667]
[1765646558182,1.9007,3101.0,3100.9,0.7667]
[1765646558683,1.4794,3101.0,3100.9,1.5258]
[1765646558886,15.7045,3101.0,3100.9,1.5258]
[1765646559185,0.7415,3101.0,3100.9,1.5258]
[1765646559388,4.6872,3101.2,3101.1,1.5258]
[1765646559588,8.3893,3101.2,3101.1,1.5258]
[1765646560084,19.6152,3101.2,3101.1,1.5258]
[1765646560673,3.2078,3101.2,3101.1,1.5258]
[1765646561277,3.9493,3101.2,3101.1,1.5258]
[1765646561985,1.4794,3100.9,3100.8,4.7336]
[1765646565485,0.7415,3100.9,3100.8,4.7336]
[1765646566580,4.6872,3101.2,3101.1,1.5258]
[1765646567588,1.4794,3101.2,3101.1,1.5258]
[1765646569888,16.4414,3101.2,3101.1,1.5258]
[1765646571290,16.4414,3101.2,3101.1,0.7667]
[1765646571791,16.4414,3101.2,3100.7,3.2078]
[1765646571992,0.7415,3100.8,3100.7,4.7336]
[1765646573595,14.962,3101.2,3100.7,4.7336]
[1765646573797,16.4414,3101.2,3101.1,0.7667]
[1765646579497,16.4414,3101.2,3100.7,3.2078]
[1765646580797,0.6969,3100.8,3100.7,4.7266]
[1765646583593,14.962,3101.2,3100.7,4.7266]
[1765646584402,0.6969,3100.8,3100.7,4.7266]
[1765646584617,1.4352,3100.8,3100.7,3.2078]
[1765646584795,1.4352,3100.8,3100.7,3.9789]
[1765646584998,1.4352,3100.8,3100.7,4.7266]
[1765646585898,1.4352,3100.8,3100.7,3.9789]
[1765646586103,1.4352,3100.6,3100.5,1.5188]
[1765646586296,0.4193,3101.0,3100.5,1.956]
[1765646587506,0.6969,3100.6,3100.5,1.956]
[1765646587807,1.4352,3100.6,3100.5,1.956]
[1765646588897,1.4352,3100.6,3100.5,1.5188]
[1765646589095,1.4352,3100.6,3100.5,0.7711]
[1765646589297,1.4352,3100.6,3100.5,1.5188]
[1765646591303,1.4352,3100.4,3100.3,3.2078]
[1765646592199,1.4352,3100.4,3100.3,3.9789]
[1765646592804,1.4352,3100.4,3100.3,4.7266]
[1765646595000,1.4352,3100.4,3100.3,3.2078]
[1765646595595,1.4352,3100.4,3100.3,3.9789]
[1765646596997,1.4352,3100.4,3100.3,4.7266]
[1765646597205,5.6822,3100.4,3100.3,4.7266]
[1765646597508,5.6822,3100.4,3100.3,3.9789]
[1765646597707,0.6969,3100.1,3100.0,1.95863266]
[1765646604712,5.7119,3100.4,3100.3,0.7711]
[1765646604906,5.7119,3100.4,3100.3,1.4827]
[1765646606314,4.6984,3100.6,3100.5,1.5205]
[1765646606514,9.5604,3100.6,3100.5,1.5205]
[1765646607514,9.5604,3100.6,3100.5,0.7668]
[1765646608611,1.4906,3100.1,3100.0,1.96033266]
[1765646609209,0.772,3100.1,3100.0,1.96033266]
[1765646611219,1.4906,3100.1,3100.0,1.52313266]
[1765646612010,0.772,3100.1,3100.0,1.98463266]
[1765646613117,1.9305,3100.5,3100.4,0.7668]
[1765646614018,1.9305,3100.5,3100.0,0.46413266]
[1765646616022,0.772,3100.1,3100.0,1.98463266]
[1765646616221,0.4399,3100.5,3100.0,1.98463266]
[1765646616426,1.9305,3100.5,3100.4,0.7668]
[1765646616722,1.9305,3100.5,3100.0,0.46413266]
[1765646617626,0.772,3100.1,3100.0,1.98463266]
[1765646617821,1.4906,3100.1,3100.0,0.00263266]
[1765646618018,1.4906,3100.1,3100.0,1.52313266]
[1765646618320,1.4906,3100.1,3100.0,1.98463266]
[1765646620226,0.772,3100.1,3100.0,1.98463266]
[1765646620526,4.5896,3100.4,3100.3,1.5205]
[1765646622833,3.9798,3100.6,3100.5,1.5205]
[1765646623133,1.4906,3100.1,3100.0,1.23093266]
[1765646623334,1.4906,3100.1,3100.0,1.98463266]
[1765646623830,0.772,3100.1,3100.0,1.98463266]
[1765646625333,1.4906,3100.1,3100.0,1.98463266]
[1765646629842,0.772,3100.1,3100.0,1.98463266]
[1765646635044,1.4906,3100.1,3100.0,1.98463266]
[1765646637544,1.4906,3100.1,3100.0,1.52313266]
[1765646638843,1.4906,3100.1,3100.0,1.94933266]
[1765646639140,15.9877,3100.4,3100.3,1.4466]
[1765646644847,15.9877,3100.4,3100.3,0.7479]
[1765646645242,15.9877,3100.4,3100.3,1.4466]
[1765646648851,0.7578,3100.4,3100.3,1.4466]
[1765646649052,4.6755,3100.6,3100.5,1.4466]
[1765646649352,1.4677,3100.1,3100.0,0.75053266]
[1765646649843,1.4677,3100.1,3100.0,1.44923266]
[1765646654752,1.4677,3100.1,3100.0,0.75053266]
[1765646655047,1.4677,3100.1,3100.0,0.00263266]
[1765646657453,1.4677,3100.1,3100.0,0.75053266]
[1765646657853,1.4677,3100.1,3100.0,1.44923266]
[1765646658254,1.4677,3100.1,3100.0,0.75053266]
[1765646658455,1.4677,3100.1,3100.0,0.00263266]
[1765646658653,0.4481,3100.0,3099.5,3.634]
[1765646658851,3.2078,3099.8,3099.0,1.1741]
[1765646659046,0.9757279,3099.7,3099.0,1.1741]
[1765646659250,6.161,3099.6,3098.7,3.2078]
[1765646659557,3.2078,3098.9,3098.3,3.2078]
[1765646659758,3.21112269,3098.9,3098.3,3.2110338]
[1765646659954,3.21112269,3098.9,3098.3,0.0032338]
[1765646661450,14.968,3098.8,3098.3,0.0032338]
[1765646661651,14.968,3098.7,3098.5,1.1741]
[1765646661851,14.968,3098.7,3098.5,0.4262]
[1765646662161,14.968,3098.7,3098.3,0.0032338]
[1765646663458,14.968,3098.7,3098.5,0.4262]
[1765646664056,10.328,3098.6,3098.5,0.4262]
[1765646664860,3.21112269,3098.9,3098.5,0.4262]
[1765646665057,2.072,3098.8,3098.5,1.1741]
[1765646665255,2.072,3098.8,3098.5,1.9048]
[1765646665753,3.21112269,3098.9,3098.8,1.4418]
[1765646666151,0.00332269,3098.9,3098.8,1.4418]
[1765646697393,0.00014532,3098.9,3098.8,1.4418]
[1765646702393,0.88254532,3099.0,3098.9,1.4687]
[1765646703398,0.88551425,3099.0,3098.9,1.4687]
[1765646707096,1.63951425,3099.0,3098.9,1.4687]
[1765646707296,1.11529542,3099.0,3098.9,1.4687]
[1765646707805,0.36129542,3099.0,3098.9,1.4687]
[1765646708906,0.00296893,3099.0,3098.9,1.4687]
[1765646714811,0.754,3098.7,3098.6,3.9147]
[1765646715006,0.00296893,3099.0,3098.6,4.6765]
[1765646715206,1.52426893,3099.0,3098.9,1.4687]
[1765646718010,0.00296893,3099.0,3098.9,1.4687]
[1765646734629,3.2078,3099.3,3099.2,1.4302]
[1765646734827,3.9369,3099.3,3099.2,1.4302]
[1765646735326,3.2078,3099.3,3099.2,1.4302]
[1765646735718,3.21168429,3099.3,3099.2,1.4302]
[1765646740526,3.94078429,3099.3,3099.2,1.4302]
[1765646740731,4.66168429,3099.3,3099.2,1.4302]
[1765646742137,4.66168429,3099.3,3099.2,0.7047]
[1765646744040,4.66168429,3099.3,3099.2,1.4302]
[1765646745438,1.45388429,3099.3,3099.2,1.4302]
[1765646746541,1.45388429,3099.3,3099.2,0.7047]
[1765646747539,1.45388429,3099.3,3099.2,1.4302]
[1765646749647,1.45,3099.1,3099.0,1.8766]
[1765646750339,0.7291,3099.1,3099.0,1.8766]
[1765646757263,1.49908429,3099.3,3099.2,1.5003]
[1765646761352,0.73758429,3099.3,3099.2,1.5003]
[1765646761549,1.49908429,3099.3,3099.2,1.5003]
[1765646768269,0.73758429,3099.3,3099.2,1.5003]
[1765646768672,1.49908429,3099.3,3099.2,0.7625]
[1765646769260,1.4952,3099.1,3099.0,1.9467]
[1765646769464,4.703,3099.1,3099.0,1.9467]
[1765646770474,4.703,3099.1,3098.5,0.4262]
[1765646770674,4.703,3099.1,3099.0,0.7625]
[1765646770877,4.703,3099.1,3099.0,1.5003]
[1765646771568,4.703,3099.1,3099.0,1.9648]
[1765646784194,1.4952,3099.1,3099.0,1.9648]
[1765646790599,0.7337,3099.1,3099.0,1.9648]
[1765646791201,1.4514,3099.1,3099.0,1.9648]
[1765646791701,0.7337,3099.1,3099.0,1.9648]
[1765646792000,4.68898429,3099.3,3099.2,0.751]
[1765646793502,1.4773,3099.1,3099.0,1.9246]
[1765646796006,1.4773,3099.1,3099.0,1.4601]
[1765646796402,1.4773,3099.1,3099.0,0.751]
[1765646796905,1.4773,3099.1,3099.0,1.4601]
[1765646804710,3.97128429,3099.3,3099.2,1.4601]
[1765646805016,3.21168429,3099.3,3099.2,1.4601]
[1765646805902,3.97128429,3099.3,3099.2,1.4601]
[1765646806102,4.68898429,3099.3,3099.2,1.4601]
[1765646807010,1.4773,3099.1,3099.0,1.4601]
[1765646809013,1.4773,3099.1,3099.0,0.751]
[1765646809315,1.4773,3099.1,3099.0,1.4601]
[1765646818617,0.7596,3099.1,3099.0,1.8957]
[1765646818918,3.9487,3099.2,3099.1,1.4551]
[1765646819119,4.7155,3099.2,3099.1,1.4551]
[1765646819320,3.2078,3099.2,3099.1,1.4551]
[1765646820313,3.9487,3099.2,3099.1,1.4551]
[1765646821829,4.7155,3099.2,3099.1,1.4551]
[1765646822018,1.5077,3099.1,3099.0,0.7506]
[1765646824926,1.5077,3099.1,3099.0,1.4551]
[1765646830933,1.5077,3099.1,3099.0,1.8907]
[1765646832332,1.5077,3099.1,3099.0,1.4551]
[1765646834227,1.5077,3099.1,3099.0,0.7506]
[1765646834432,1.5077,3098.7,3098.6,1.4551]
[1765646835027,0.7409,3098.7,3098.6,1.4551]
[1765646836032,1.5077,3098.7,3098.6,1.4551]
[1765646836735,0.7409,3098.7,3098.6,1.4551]
[1765646838435,1.5077,3098.7,3098.6,1.4551]
[1765646838628,1.5077,3098.4,3098.3,0.0032338]
[1765646838824,1.5077,3098.4,3098.3,0.7538338]
[1765646839029,1.5077,3098.4,3098.3,1.4583338]
[1765646839634,4.7155,3098.6,3098.5,1.4551]
[1765646839939,3.2078,3098.6,3098.5,1.8907]
[1765646840124,3.9487,3098.6,3098.5,1.8907]
[1765646840329,4.7155,3098.6,3098.5,1.8907]
[1765646840939,3.2078,3098.6,3098.5,1.8907]
[1765646843634,3.9436,3099.0,3098.9,1.4634]
[1765646843828,3.2078,3099.0,3098.9,1.4634]
[1765646844237,3.9436,3099.0,3098.9,1.4634]
[1765646845038,1.473,3098.4,3098.3,4.6799338]
[1765646846637,1.473,3098.4,3098.3,0.0032338]
[1765646856951,4.6808,3098.4,3098.3,0.0032338]
[1765646858952,4.6808,3098.4,3097.5,3.634]
[1765646858953,0.7293,3097.6,3097.5,5.1029]
[1765646859153,1.4778394,3097.9,3097.8,1.4689]
[1765646859950,1.4778394,3097.9,3097.8,1.4719051]
[1765646861254,1.4778394,3097.9,3097.8,0.7535051]
[1765646866565,1.4778394,3097.9,3097.8,0.0030051]
[1765646867869,1.4778394,3097.9,3097.8,0.7535051]
[1765646869063,1.4778394,3097.9,3097.8,0.0030051]
[1765646872672,4.6856394,3097.9,3097.8,0.0030051]
[1765646877268,1.4589,3097.3,3097.2,3.2078]
[1765646877467,0.93443282,3097.3,3097.2,3.2078]
[1765646877667,0.93443282,3097.3,3097.2,4.7183]
[1765646878275,0.93443282,3097.3,3097.2,4.72239002]
[1765646879270,3.2126394,3097.9,3097.2,4.72239002]
[1765646880779,0.7406,3097.3,3097.2,4.72239002]
[1765646881078,3.2126394,3097.9,3097.2,4.72239002]
[1765646881478,0.7406,3097.3,3097.2,4.72239002]
[1765646882474,3.2126394,3097.9,3097.2,4.72239002]
[1765646885578,0.7406,3097.3,3097.2,4.72239002]
[1765646887181,1.4589,3097.3,3097.2,1.51459002]
[1765646887382,0.93439544,3097.3,3097.2,0.00409002]
[1765646887580,0.93439544,3097.3,3097.2,0.76369002]
[1765646888786,0.93439544,3097.3,3097.2,0.00409002]
[1765646889176,0.93439544,3097.3,3097.2,0.76369002]
[1765646889874,0.93439544,3097.3,3097.2,1.51459002]
[1765646891085,3.42389544,3097.3,3097.2,1.51459002]
[1765646892876,0.93439544,3097.3,3097.2,1.51459002]
[1765646893083,4.14219544,3097.3,3097.2,1.51459002]
[1765646896872,3.42389544,3097.3,3097.2,1.51459002]
[1765646897886,0.21609544,3097.3,3097.2,1.51459002]
[1765646898084,3.42389544,3097.3,3097.2,1.51459002]
[1765646898684,4.14219544,3097.3,3097.2,1.51459002]
[1765646898884,3.42389544,3097.3,3097.2,1.51459002]
[1765646900084,4.14219544,3097.3,3097.2,0.00409002]
[1765646900278,4.14219544,3097.3,3097.2,0.76369002]
[1765646900677,4.14219544,3097.3,3097.2,1.51459002]
[1765646903192,4.14219544,3097.3,3097.2,0.76369002]
[1765646903995,4.14219544,3097.3,3097.2,0.00409002]
[1765646904592,4.14219544,3097.3,3097.2,0.74629002]
[1765646904792,4.14219544,3097.3,3097.2,1.45529002]
[1765646906192,4.14219544,3097.3,3097.2,0.74629002]
[1765646906395,4.14219544,3097.3,3097.2,1.46959002]
[1765646909597,3.42389544,3097.3,3097.2,1.46959002]
[1765646909794,3.2078,3097.3,3097.2,1.46959002]
[1765646909994,3.9093,3097.3,3097.2,1.46959002]
[1765646910697,3.2078,3097.3,3097.2,1.46959002]
[1765646911995,3.9093,3097.3,3097.2,1.46959002]
[1765646914000,0.7015,3097.3,3097.2,1.46959002]
[1765646920306,0.7015,3097.3,3097.2,0.00409002]